bitfinex-derivatives/quotes_ETHF0:USTF0_20250421
["timestamp","ask_amount","ask_price","bid_price","bid_amount"]
[1745223123826,12.21226694,1649.2,1648.6,7.0971]
[1745223124029,4.42078,1648.8,1648.6,3.80549]
[1745223124235,3.931,1648.7,1648.6,3.80549]
[1745223124739,3.931,1648.7,1648.6,44.60549]
[1745223125334,6.195,1648.7,1648.6,44.60549]
[1745223128635,6.195,1648.7,1648.6,43.3924]
[1745223128832,1.21312,1648.6,1648.5,0.00910663]
[1745223129139,6.14261789,1648.6,1648.5,0.00910663]
[1745223129439,6.14261789,1648.6,1648.5,40.80910663]
[1745223129938,6.03822,1648.6,1648.5,40.80910663]
[1745223130134,8.40662221,1648.6,1648.5,40.80910663]
[1745223131439,8.40662221,1648.6,1648.5,0.00910663]
[1745223133337,8.30222,1648.6,1648.5,0.00910663]
[1745223133538,8.40663409,1648.6,1648.5,0.00910663]
[1745223136741,8.40663728,1648.6,1648.5,0.00910663]
[1745223138236,8.30222,1648.6,1648.5,0.00910663]
[1745223138637,8.40663704,1648.6,1648.5,0.00910663]
[1745223139942,8.40663323,1648.6,1648.5,0.00910663]
[1745223140742,9.21153323,1648.6,1648.5,0.00910663]
[1745223141538,9.21153243,1648.6,1648.5,0.00910663]
[1745223144147,28.33619689,1648.6,1648.2,0.79489338]
[1745223144346,1.21351,1648.1,1647.9,2.595]
[1745223144537,3.931,1648.0,1647.8,3.2078]
[1745223144738,3.2078,1647.9,1647.7,40.8]
[1745223144945,5.6534,1647.9,1647.7,40.8]
[1745223145136,5.4718,1647.9,1647.7,40.8]
[1745223145342,2.264,1647.9,1647.8,2.04251]
[1745223146250,2.264,1647.9,1647.8,0.8288]
[1745223146442,2.264,1647.9,1647.8,2.04251]
[1745223146650,2.36844191,1647.9,1647.8,0.8288]
[1745223147047,2.36844191,1647.9,1647.7,42.01373]
[1745223147247,8.35874,1647.9,1647.7,42.87503]
[1745223147448,8.35874,1647.9,1647.8,0.8775]
[1745223147749,5.25538846,1647.9,1647.8,2.5619]
[1745223147948,7.24954846,1647.9,1647.6,0.00910663]
[1745223148148,4.42158,1647.7,1647.6,0.00910663]
[1745223148350,8.45802846,1647.7,1647.6,0.00910663]
[1745223148551,10.93422846,1647.7,1647.6,40.80910663]
[1745223148751,10.93422846,1647.7,1647.6,0.00910663]
[1745223149150,13.19822846,1647.7,1647.6,0.00910663]
[1745223151255,13.09378,1647.7,1647.6,0.00910663]
[1745223151452,13.19825263,1647.7,1647.6,0.00910663]
[1745223153967,13.19825263,1647.7,1647.6,1.62720663]
[1745223154470,1.21392,1647.6,1647.4,1.6181]
[1745223154660,5.06387881,1647.5,1647.4,1.6181]
[1745223154858,6.27780881,1647.5,1647.4,1.6181]
[1745223155060,1.21401,1647.4,1647.1,1.21417]
[1745223155262,3.73741,1647.4,1647.3,1.704]
[1745223155457,7.76796014,1647.4,1647.3,1.704]
[1745223155659,7.76796014,1647.4,1647.3,42.504]
[1745223156062,10.03196014,1647.4,1647.3,42.504]
[1745223157066,10.03196014,1647.4,1647.3,40.8]
[1745223157265,1.21408,1647.3,1647.2,0.00910663]
[1745223157462,6.22006263,1647.3,1647.2,0.00217414]
[1745223157658,6.22006263,1647.3,1647.2,40.80217414]
[1745223157858,6.22006263,1647.3,1647.2,0.00217414]
[1745223158167,6.22006263,1647.3,1647.2,6.21632414]
[1745223158168,2.264,1647.3,1647.2,6.21632414]
[1745223158663,2.264,1647.3,1647.2,7.82322414]
[1745223159070,2.264,1647.3,1647.2,47.40907414]
[1745223159374,2.264,1647.3,1647.2,42.40907414]
[1745223159573,2.264,1647.3,1647.2,43.62322414]
[1745223162971,2.264,1647.3,1647.2,42.40907414]
[1745223164573,2.36848542,1647.3,1647.2,42.40907414]
[1745223165176,2.264,1647.3,1647.2,42.40907414]
[1745223165368,2.3684842,1647.3,1647.2,42.40907414]
[1745223165869,2.264,1647.3,1647.2,43.62322414]
[1745223166171,2.36848602,1647.3,1647.2,43.62322414]
[1745223166572,2.264,1647.3,1647.2,43.62322414]
[1745223167866,3.58256338,1647.3,1647.2,1.60907414]
[1745223168064,6.04676338,1647.3,1647.2,1.60907414]
[1745223168473,6.04676338,1647.3,1647.2,40.80217414]
[1745223169374,6.04677408,1647.3,1647.2,40.80217414]
[1745223170076,4.83269408,1647.3,1647.2,40.80217414]
[1745223170379,6.04677408,1647.3,1647.2,42.39997414]
[1745223170974,6.04677095,1647.3,1647.2,42.39997414]
[1745223171174,4.83269095,1647.3,1647.2,42.39997414]
[1745223171978,6.04677095,1647.3,1647.2,42.39997414]
[1745223172379,4.83269095,1647.3,1647.2,42.39997414]
[1745223172580,6.04677095,1647.3,1647.2,42.39997414]
[1745223173375,5.94228,1647.3,1647.2,42.39997414]
[1745223173682,6.04677234,1647.3,1647.2,42.39997414]
[1745223175886,5.94228,1647.3,1647.2,42.39997414]
[1745223176082,6.15126297,1647.3,1647.2,42.39997414]
[1745223177183,6.15126297,1647.3,1647.2,40.80217414]
[1745223177679,6.15126305,1647.3,1647.2,0.00217414]
[1745223177980,98.76526305,1647.3,1647.2,0.00217414]
[1745223179284,103.76526305,1647.3,1647.2,0.00217414]
[1745223179984,98.76526305,1647.3,1647.2,0.00217414]
[1745223180887,98.76528308,1647.3,1647.2,0.00217414]
[1745223181076,98.76528308,1647.3,1646.8,2.618]
[1745223181077,1.21437,1646.9,1646.8,1.7503]
[1745223181278,8.46068159,1646.9,1646.8,1.7503]
[1745223181885,10.06788159,1646.9,1646.8,1.7503]
[1745223182185,12.33188713,1646.9,1646.8,1.7503]
[1745223182585,9.51031713,1646.9,1646.8,1.7503]
[1745223182785,9.51031713,1646.9,1646.8,2.5999]
[1745223183482,10.72468713,1646.9,1646.8,2.5999]
[1745223183689,10.72468617,1646.9,1646.8,1.7503]
[1745223183887,12.48868617,1646.9,1646.8,1.7503]
[1745223184984,12.48868669,1646.9,1646.8,1.7503]
[1745223185582,12.59320338,1646.9,1646.8,1.7503]
[1745223186392,11.37883338,1646.9,1646.8,1.7503]
[1745223186583,12.59320338,1646.9,1646.8,1.7503]
[1745223186886,11.37883338,1646.9,1646.8,1.7503]
[1745223187190,11.37883338,1646.9,1646.8,2.5797]
[1745223188989,12.59320338,1646.9,1646.8,1.7503]
[1745223189489,11.37883338,1646.9,1646.8,1.7503]
[1745223190390,11.37883338,1646.9,1646.8,2.5795]
[1745223190787,9.61483338,1646.9,1646.8,2.5795]
[1745223191087,10.82920338,1646.9,1646.8,2.5795]
[1745223191393,8.56520338,1646.9,1646.8,2.5795]
[1745223192194,10.82920338,1646.9,1646.8,2.5795]
[1745223192589,9.61483338,1646.9,1646.8,2.5795]
[1745223193485,6.40703338,1646.9,1646.8,2.5795]
[1745223193694,6.30251669,1646.9,1646.8,3.79395]
[1745223194195,4.03851669,1646.9,1646.8,3.79395]
[1745223194593,4.03851669,1646.9,1646.8,44.59395]
[1745223195996,4.03851669,1646.9,1646.8,43.3795]
[1745223196496,4.03851669,1646.9,1646.8,44.59395]
[1745223197394,4.03851669,1646.9,1646.8,43.3795]
[1745223197993,4.03851669,1646.9,1646.8,44.59395]
[1745223200794,4.03751669,1646.9,1646.8,50.47795]
[1745223203399,4.03751669,1646.9,1646.8,49.2635]
[1745223203897,4.03751669,1646.9,1646.8,50.47795]
[1745223225222,4.03751669,1646.9,1646.8,53.68575]
[1745223232522,1e-08,1647.0,1646.9,1.21437]
[1745223232730,1e-08,1647.0,1646.9,2.88507]
[1745223232921,1e-08,1647.0,1646.9,7.88507]
[1745223233122,1e-08,1647.0,1646.9,50.94907]
[1745223233632,4.03649149,1647.3,1647.2,1.21415]
[1745223233633,0.10449149,1647.3,1647.2,1.21415]
[1745223233928,0.10449149,1647.3,1647.2,10.30595]
[1745223234220,1.49e-06,1647.3,1647.2,53.36995]
[1745223234425,1.49e-06,1647.3,1647.2,60.13855]
[1745223236927,1.49e-06,1647.3,1647.2,55.13855]
[1745223237332,8.12e-06,1647.4,1647.3,1.21408]
[1745223237522,2.4806,1647.6,1647.5,1.21393]
[1745223237930,2.47367563,1647.6,1647.5,43.67663]
[1745223238227,2.47367563,1647.6,1647.5,45.94063]
[1745223238631,2.47367563,1647.6,1647.5,51.82463]
[1745223239227,4.76370663,1647.7,1647.6,1.21386]
[1745223239831,4.76370663,1647.7,1647.6,42.01386]
[1745223241232,5.63220663,1647.7,1647.6,42.01386]
[1745223246930,7.28000663,1647.7,1647.6,42.01386]
[1745223251142,12.38284965,1647.7,1647.6,42.01386]
[1745223251740,12.38284998,1647.7,1647.6,42.01386]
[1745223251940,13.59662998,1647.7,1647.6,40.8]
[1745223252538,8.59662998,1647.7,1647.6,40.8]
[1745223252838,7.38284998,1647.7,1647.6,42.01386]
[1745223253233,7.38285192,1647.7,1647.6,42.01386]
[1745223253438,8.59663192,1647.7,1647.6,40.8]
[1745223253744,8.49378663,1647.7,1647.6,40.8]
[1745223254041,8.59662871,1647.7,1647.6,40.8]
[1745223254243,8.59662871,1647.7,1647.6,42.01386]
[1745223254544,8.59662871,1647.7,1647.6,40.8]
[1745223254745,11.80442871,1647.7,1647.6,40.8]
[1745223257837,8.59662871,1647.7,1647.6,40.8]
[1745223258043,11.80443443,1647.7,1647.6,40.8]
[1745223260646,8.59663443,1647.7,1647.6,40.8]
[1745223260847,11.80443443,1647.7,1647.6,40.8]
[1745223266147,11.80443206,1647.7,1647.6,40.8]
[1745223267751,11.80443256,1647.7,1647.6,40.8]
[1745223267949,8.59663256,1647.7,1647.6,40.8]
[1745223268143,11.80443256,1647.7,1647.6,40.8]
[1745223268545,11.80443256,1647.7,1647.6,42.01386]
[1745223269052,11.80443256,1647.7,1647.6,40.8]
[1745223269551,11.80443541,1647.7,1647.6,42.5609]
[1745223271351,11.80443361,1647.7,1647.6,42.5609]
[1745223272949,11.80443365,1647.7,1647.6,42.5609]
[1745223274048,8.59663365,1647.7,1647.6,42.5609]
[1745223274243,11.80443365,1647.7,1647.6,42.5609]
[1745223276151,8.46453365,1647.7,1647.6,42.5609]
[1745223276649,8.46453365,1647.7,1647.6,43.3915]
[1745223277246,8.36168663,1647.7,1647.6,43.3915]
[1745223278356,8.46453215,1647.7,1647.6,43.3915]
[1745223279156,5.25673215,1647.7,1647.6,43.3915]
[1745223279353,5.15388663,1647.7,1647.6,43.3915]
[1745223280152,5.25673221,1647.7,1647.6,43.3915]
[1745223280356,6.08663221,1647.7,1647.6,42.5609]
[1745223280556,7.76913221,1647.7,1647.6,42.5609]
[1745223282056,10.97693221,1647.7,1647.6,42.5609]
[1745223283158,13.24093221,1647.7,1647.6,42.5609]
[1745223284358,13.24093408,1647.7,1647.6,42.5609]
[1745223285054,10.03313408,1647.7,1647.6,42.5609]
[1745223285250,13.24093408,1647.7,1647.6,42.5609]
[1745223285759,13.24093246,1647.7,1647.6,42.5609]
[1745223286061,10.03313246,1647.7,1647.6,42.5609]
[1745223286256,13.24093246,1647.7,1647.6,42.5609]
[1745223286558,13.24093246,1647.7,1647.6,40.8]
[1745223286754,1.21386,1647.6,1647.5,0.8297]
[1745223286959,3.82986,1647.6,1647.5,0.8297]
[1745223287262,6.09386,1647.6,1647.5,43.2638]
[1745223289360,3.82986,1647.6,1647.5,43.2638]
[1745223289553,3.82986,1647.6,1647.5,44.47773]
[1745223291161,6.09386,1647.6,1647.5,44.47773]
[1745223292253,3.82986,1647.6,1647.5,44.47773]
[1745223292454,2.616,1647.6,1647.5,44.47773]
[1745223292859,3.82986,1647.6,1647.5,44.47773]
[1745223294162,1.7662,1647.6,1647.5,44.47773]
[1745223294362,3.94010663,1647.7,1647.6,1.21386]
[1745223294564,4.04294905,1647.7,1647.6,3.80076]
[1745223294863,3.94010663,1647.7,1647.6,3.80076]
[1745223295057,4.04295059,1647.7,1647.6,3.80076]
[1745223296855,3.94010663,1647.7,1647.6,3.80076]
[1745223297258,7.41788663,1647.7,1647.6,3.80076]
[1745223297652,7.52073004,1647.7,1647.6,3.80076]
[1745223297856,8.35143004,1647.7,1647.6,3.80076]
[1745223298065,8.35143004,1647.7,1647.6,1.7474]
[1745223298453,8.35143004,1647.7,1647.6,2.96126]
[1745223298652,8.35143315,1647.7,1647.6,2.96126]
[1745223299769,8.35143315,1647.7,1647.6,1.7474]
[1745223300361,8.35143266,1647.7,1647.6,1.7474]
[1745223300563,8.35143269,1647.7,1647.6,1.7474]
[1745223300957,8.24858663,1647.7,1647.6,1.7474]
[1745223301159,8.35143064,1647.7,1647.6,1.7474]
[1745223301458,1.21386,1647.6,1647.5,42.84357]
[1745223301661,1.6956,1647.6,1647.5,44.50897]
[1745223302164,3.9596,1647.6,1647.5,44.50897]
[1745223302368,6.04126,1647.6,1647.5,42.4654]
[1745223302672,1.214,1647.4,1647.3,0.8664]
[1745223302860,7.1358,1647.4,1647.2,7.5494]
[1745223303056,3.75888,1647.3,1647.2,5.884]
[1745223303257,1.21426,1647.1,1647.0,40.8]
[1745223303563,5.14226,1647.1,1647.0,40.8]
[1745223303757,5.14226,1647.1,1646.9,11.83155935]
[1745223303958,6.83786,1647.1,1646.9,11.83155935]
[1745223304159,9.10186,1647.1,1646.9,11.83155935]
[1745223304669,9.10186,1647.1,1647.0,40.8]
[1745223306470,6.192,1647.1,1647.0,42.0143]
[1745223306669,6.192,1647.1,1647.0,43.6919]
[1745223307164,3.928,1647.1,1647.0,43.6919]
[1745223316775,5.14223,1647.1,1647.0,40.8]
[1745223316963,6.76813,1647.1,1647.0,40.8]
[1745223317167,6.87101438,1647.1,1647.0,40.8]
[1745223317472,7.35751788,1647.1,1647.0,40.8]
[1745223319174,9.62152003,1647.1,1647.0,40.8]
[1745223321174,7.35752003,1647.1,1647.0,40.8]
[1745223322981,1.21445,1646.8,1646.7,5.89310663]
[1745223323274,5.14345,1646.8,1646.7,0.00910663]
[1745223323774,6.81795,1646.8,1646.7,0.00910663]
[1745223324077,6.81795,1646.8,1646.7,40.80910663]
[1745223325874,6.92085601,1646.8,1646.7,40.80910663]
[1745223326578,6.92085601,1646.8,1646.7,0.00910663]
[1745223326768,11.81795,1646.8,1646.7,0.00910663]
[1745223326974,6.92086744,1646.8,1646.7,0.00910663]
[1745223327175,9.18486744,1646.8,1646.7,0.00910663]
[1745223327370,9.18487008,1646.8,1646.7,0.00910663]
[1745223329378,9.18387008,1646.8,1646.7,0.00910663]
[1745223329577,9.18387008,1646.8,1646.7,1.60930663]
[1745223329978,5.25587008,1646.8,1646.7,1.60930663]
[1745223330178,5.14245,1646.8,1646.7,1.60930663]
[1745223330573,1.21445,1646.8,1646.7,1.60930663]
[1745223330774,5.14245,1646.8,1646.7,1.60930663]
[1745223331077,1.21445,1646.8,1646.7,1.60930663]
[1745223331278,5.14245,1646.8,1646.7,1.60930663]
[1745223332281,3.928,1646.8,1646.7,2.82382663]
[1745223333493,3.2078,1646.9,1646.8,1.21445]
[1745223333686,7.1358,1646.9,1646.8,2.93125]
[1745223333978,3.928,1646.9,1646.8,43.73125]
[1745223334184,3.928,1646.9,1646.8,56.6086]
[1745223334384,3.928,1646.9,1646.8,57.82305]
[1745223334586,92.619,1647.2,1647.1,1.21423]
[1745223334779,97.76119,1647.2,1647.0,7.09825]
[1745223334980,97.76119,1647.2,1647.0,8.74305]
[1745223335184,97.76119,1647.2,1647.1,1.6448]
[1745223335585,99.35879,1647.2,1647.1,1.6448]
[1745223336576,1.21423,1647.1,1647.0,5.884]
[1745223336775,6.87943,1647.1,1647.0,7.5288]
[1745223337585,6.87943,1647.1,1646.5,5.884]
[1745223337586,3.03576,1647.0,1646.5,5.884]
[1745223337783,1.21467,1646.5,1646.4,9.1596]
[1745223337984,3.928,1646.5,1646.4,49.9596]
[1745223338184,5.14267,1646.5,1646.4,49.9596]
[1745223339890,3.928,1646.5,1646.4,49.9596]
[1745223340279,5.6059,1646.5,1646.4,49.9596]
[1745223340485,5.6059,1646.5,1646.4,51.17434]
[1745223340789,3.928,1646.5,1646.4,51.17434]
[1745223341081,3.928,1646.5,1646.4,45.29034]
[1745223341887,3.928,1646.5,1646.4,44.0756]
[1745223342887,5.14267,1646.5,1646.4,44.0756]
[1745223343280,3.928,1646.5,1646.4,45.29034]
[1745223344387,3.928,1646.5,1646.4,50.29034]
[1745223345488,3.928,1646.5,1646.4,45.29034]
[1745223347076,5.14267,1646.5,1646.4,51.17434]
[1745223348091,5.14267,1646.5,1646.4,53.43834]
[1745223348981,3.928,1646.5,1646.4,53.43834]
[1745223349182,5.14267,1646.5,1646.4,53.43834]
[1745223349881,3.928,1646.5,1646.4,53.43834]
[1745223350082,3.928,1646.5,1646.4,51.17434]
[1745223351591,0.00910663,1646.6,1646.5,1.21467]
[1745223351792,3.93810663,1646.6,1646.5,2.85347]
[1745223354787,3.93810663,1646.6,1646.5,6.06127]
[1745223354988,0.00910663,1646.6,1646.5,6.06127]
[1745223355295,3.93710663,1646.6,1646.5,6.06127]
[1745223358089,3.93710663,1646.6,1646.5,8.32527]
[1745223358693,3.93710663,1646.6,1646.5,14.20927]
[1745223359091,3.93710663,1646.6,1646.5,11.94527]
[1745223366904,5.57080663,1646.6,1646.5,11.94527]
[1745223368795,6.43220663,1646.6,1646.5,11.94527]
[1745223370706,5.57080663,1646.6,1646.5,11.94527]
[1745223371510,3.93710663,1646.6,1646.5,11.94527]
[1745223372109,3.93710663,1646.6,1646.5,14.20927]
[1745223373106,3.93710663,1646.6,1646.5,11.94527]
[1745223373901,4.81600663,1646.6,1646.5,11.94527]
[1745223374100,6.03059663,1646.6,1646.5,10.30647]
[1745223374703,4.81600663,1646.6,1646.5,7.09867]
[1745223375305,6.58090663,1646.6,1646.5,7.09867]
[1745223376106,14.78870663,1646.6,1646.3,0.00910663]
[1745223376408,4.42254,1646.4,1646.3,0.00910663]
[1745223376609,4.52545227,1646.4,1646.3,40.80910663]
[1745223376800,6.29035227,1646.4,1646.3,40.80910663]
[1745223379403,10.21835227,1646.4,1646.3,40.80910663]
[1745223380610,10.21837918,1646.4,1646.3,40.80910663]
[1745223382107,15.21837918,1646.4,1646.3,0.00910663]
[1745223382604,10.21837918,1646.4,1646.3,0.00910663]
[1745223383805,10.21837992,1646.4,1646.3,0.00910663]
[1745223388319,12.48237992,1646.4,1646.3,0.00910663]
[1745223388708,12.48238492,1646.4,1646.3,0.00910663]
[1745223389213,10.21838492,1646.4,1646.3,0.00910663]
[1745223390211,12.48238492,1646.4,1646.3,0.00910663]
[1745223390407,12.48238525,1646.4,1646.3,0.00910663]
[1745223391315,13.28128525,1646.4,1646.3,0.00910663]
[1745223392003,13.28128514,1646.4,1646.3,0.00910663]
[1745223392208,11.01728514,1646.4,1646.3,0.00910663]
[1745223392711,3.31074514,1646.4,1646.3,0.00910663]
[1745223392903,5.24568514,1646.4,1646.3,1.62020663]
[1745223393103,16.02718514,1646.4,1646.3,0.00910663]
[1745223393910,11.02718514,1646.4,1646.3,0.00910663]
[1745223394112,11.02718514,1646.4,1646.0,5.884]
[1745223394113,17.07644514,1646.4,1646.0,5.884]
[1745223394316,1.21511,1645.9,1645.8,6.7454]
[1745223394516,5.14311,1645.9,1645.8,6.7454]
[1745223394717,5.14311,1645.9,1645.8,5.884]
[1745223394915,1.21519,1645.8,1645.7,7.4951]
[1745223395117,7.96372,1645.8,1645.5,5.884]
[1745223395416,4.42313,1645.6,1645.5,5.884]
[1745223395616,8.45410617,1645.6,1645.5,7.50420663]
[1745223396820,7.23877617,1645.6,1645.5,7.50420663]
[1745223397722,7.23877617,1645.6,1645.5,48.30420663]
[1745223398317,7.1358,1645.6,1645.5,48.30420663]
[1745223398914,8.35113,1645.6,1645.5,48.30420663]
[1745223399111,3.2078,1645.6,1645.5,48.30420663]
[1745223399316,3.929,1645.6,1645.5,52.72741663]
[1745223399519,3.929,1645.6,1645.5,49.51961663]
[1745223399718,3.929,1645.6,1645.5,53.30420663]
[1745223399923,3.929,1645.6,1645.5,54.51961663]
[1745223400117,0.00910663,1645.8,1645.7,1.21526]
[1745223400422,3.93810663,1645.8,1645.7,1.21526]
[1745223400621,3.93810663,1645.8,1645.7,3.76056]
[1745223401527,5.15329663,1645.8,1645.7,2.5453]
[1745223401821,6.99116676,1645.8,1645.7,2.5453]
[1745223402415,7.87546676,1645.8,1645.7,2.5453]
[1745223403228,7.77249663,1645.8,1645.7,2.5453]
[1745223403425,1.2153,1645.7,1645.5,47.90848663]
[1745223403623,2.8645,1645.7,1645.6,1.6666]
[1745223403824,2.96747953,1645.7,1645.6,1.6666]
[1745223404122,6.17527953,1645.7,1645.6,1.6666]
[1745223404726,6.17527953,1645.7,1645.5,48.70768663]
[1745223404913,2.6015,1645.6,1645.5,48.70768663]
[1745223405117,2.6015,1645.6,1645.5,50.44238663]
[1745223405428,3.81683,1645.6,1645.5,42.54380663]
[1745223405621,3.91979476,1645.6,1645.5,40.80910663]
[1745223406516,3.81683,1645.6,1645.5,0.00910663]
[1745223406718,3.91979723,1645.6,1645.5,0.00910663]
[1745223406924,3.91979723,1645.6,1645.5,40.80910663]
[1745223408025,3.91979723,1645.6,1645.5,0.00910663]
[1745223408425,8.91979723,1645.6,1645.5,0.00910663]
[1745223408729,8.91979723,1645.6,1645.0,5.884]
[1745223408730,1.2157,1645.1,1645.0,5.884]
[1745223409024,5.1457,1645.1,1645.0,46.684]
[1745223409229,5.1457,1645.1,1645.0,47.563]
[1745223409525,5.1457,1645.1,1645.0,49.2199]
[1745223410628,3.93,1645.1,1645.0,50.43568]
[1745223410830,3.93,1645.1,1645.0,51.27488]
[1745223412127,3.93,1645.1,1645.0,52.3231]
[1745223412432,3.93,1645.1,1645.0,53.53888]
[1745223413133,5.1457,1645.1,1645.0,52.3231]
[1745223413332,3.93,1645.1,1645.0,52.3231]
[1745223413629,5.1457,1645.1,1645.0,52.3231]
[1745223414130,5.1457,1645.1,1645.0,50.0591]
[1745223414530,5.24859401,1645.1,1645.0,8.4199]
[1745223414725,1.21578,1645.0,1644.9,1.68476451]
[1745223414930,7.12206856,1645.0,1644.9,1.68476451]
[1745223415233,7.12206856,1645.0,1644.9,2.27006451]
[1745223416225,7.12206856,1645.0,1644.9,0.00606451]
[1745223417837,1.21578,1645.0,1644.9,3.42886451]
[1745223418227,1.21578,1645.0,1644.9,5.69286451]
[1745223418627,5.14578,1645.0,1644.9,5.69286451]
[1745223421233,5.14578,1645.0,1644.9,4.87556451]
[1745223421440,10.15427602,1645.0,1644.9,3.99586451]
[1745223422239,10.15427602,1645.0,1644.9,1.73186451]
[1745223423140,10.15427602,1645.0,1644.9,3.99586451]
[1745223426042,10.05138,1645.0,1644.9,3.99586451]
[1745223430342,10.15420646,1645.0,1644.9,3.99586451]
[1745223430643,3.2078,1645.0,1644.9,5.21171451]
[1745223430846,7.1388,1645.0,1644.9,5.21171451]
[1745223431545,8.35458,1645.0,1644.9,3.99586451]
[1745223431746,7.1388,1645.0,1644.9,5.21171451]
[1745223432048,3.2078,1645.0,1644.9,5.21171451]
[1745223432238,7.1388,1645.0,1644.9,5.21171451]
[1745223432439,3.931,1645.0,1644.9,5.21171451]
[1745223434447,3.3072,1645.3,1644.9,3.99586451]
[1745223434646,5.1467,1645.2,1645.1,1.2157]
[1745223435247,3.931,1645.2,1645.1,1.2157]
[1745223435446,1.21559,1645.3,1645.2,1.21563]
[1745223435648,3.931,1645.3,1645.2,1.21563]
[1745223435842,0.8587,1645.5,1645.3,1.21553]
[1745223435843,1.21552,1645.4,1645.3,1.21553]
[1745223436353,5.14652,1645.4,1645.3,3.47953]
[1745223437145,1.21546,1645.5,1645.4,1.21546]
[1745223437349,3.931,1645.5,1645.4,2.94052]
[1745223438351,3.931,1645.5,1645.4,5.20452]
[1745223441252,3.931,1645.5,1645.4,4.34632]
[1745223441460,5.5848,1645.5,1645.4,4.34632]
[1745223442251,5.5848,1645.5,1645.4,2.08232]
[1745223443352,0.8587,1645.7,1645.4,3.1309]
[1745223443650,3.93,1645.6,1645.5,1.21535]
[1745223443852,5.5838,1645.6,1645.5,1.21535]
[1745223444046,3.93,1645.6,1645.5,1.21535]
[1745223444251,3.93,1645.6,1645.5,3.47935]
[1745223445757,0.00910663,1645.8,1645.5,9.8886]
[1745223445956,3.93,1645.7,1645.6,7.04623]
[1745223446256,3.93,1645.7,1645.6,1.21533]
[1745223446257,5.14526,1645.7,1645.6,1.21533]
[1745223446458,6.74406,1645.7,1645.6,42.01533]
[1745223446654,6.74406,1645.7,1645.6,40.8]
[1745223446855,6.74406,1645.7,1645.6,42.01533]
[1745223448352,5.5288,1645.7,1645.6,42.01533]
[1745223450457,6.74406,1645.7,1645.6,42.01533]
[1745223450660,5.5288,1645.7,1645.6,42.01533]
[1745223453060,6.74406,1645.7,1645.6,40.8]
[1745223453460,6.846919,1645.7,1645.6,40.8]
[1745223453670,5.631659,1645.7,1645.6,42.01533]
[1745223453872,6.846919,1645.7,1645.6,40.8]
[1745223455274,10.054719,1645.7,1645.6,40.8]
[1745223456273,1.21533,1645.6,1645.5,0.0287]
[1745223456473,3.75023,1645.6,1645.5,0.0287]
[1745223456672,3.75023,1645.6,1645.5,40.8]
[1745223459775,2.5349,1645.6,1645.5,42.01541]
[1745223460079,3.75023,1645.6,1645.5,40.8]
[1745223460671,3.75023,1645.6,1645.5,42.01541]
[1745223460871,3.75023,1645.6,1645.5,40.8]
[1745223461682,3.75023,1645.6,1645.5,42.01541]
[1745223461981,2.5349,1645.6,1645.5,42.01541]
[1745223462172,2.5349,1645.6,1645.5,44.27941]
[1745223462673,3.75023,1645.6,1645.5,43.064]
[1745223463066,2.5349,1645.6,1645.5,42.01541]
[1745223463474,2.5349,1645.6,1645.5,42.83211]
[1745223464283,5.14531,1645.7,1645.5,42.83211]
[1745223464473,7.70831,1645.7,1645.5,43.69321]
[1745223465878,6.493,1645.7,1645.5,43.69321]
[1745223466077,7.70826,1645.7,1645.6,1.6058]
[1745223466277,7.8110525,1645.7,1645.6,1.6058]
[1745223466679,0.1027925,1645.7,1645.6,1.6058]
[1745223466882,5.14426,1645.7,1645.6,1.6058]
[1745223467275,5.14426,1645.7,1645.6,7.4898]
[1745223467885,5.14426,1645.7,1645.6,5.884]
[1745223468184,6.06905174,1645.7,1645.6,5.884]
[1745223468380,5.96626,1645.7,1645.6,5.884]
[1745223468571,6.06905147,1645.7,1645.6,5.884]
[1745223469984,5.96626,1645.7,1645.6,5.884]
[1745223470185,6.06905211,1645.7,1645.6,5.884]
[1745223470873,7.75645211,1645.7,1645.6,5.884]
[1745223472278,7.75645211,1645.7,1645.6,46.684]
[1745223473082,7.75645211,1645.7,1645.6,42.5231]
[1745223473284,7.65366,1645.7,1645.6,42.5231]
[1745223473585,7.75645098,1645.7,1645.6,42.5231]
[1745223478787,5.24705098,1645.7,1645.6,43.73843]
[1745223478980,5.24705098,1645.7,1645.6,43.3734]
[1745223479382,4.03179098,1645.7,1645.6,44.58873]
[1745223479584,3.929,1645.7,1645.6,44.58873]
[1745223480190,1.22434663,1645.8,1645.6,44.58873]
[1745223480390,1.22434663,1645.8,1645.7,1.6854]
[1745223482390,3.93810663,1645.8,1645.7,2.90066]
[1745223482794,5.15329663,1645.8,1645.7,1.6854]
[1745223483999,1.21526,1645.7,1645.6,40.8]
[1745223484197,2.84256,1645.7,1645.6,40.8]
[1745223484697,2.94545695,1645.7,1645.6,40.8]
[1745223487199,6.15325695,1645.7,1645.6,40.8]
[1745223487898,6.1532704,1645.7,1645.6,40.8]
[1745223489000,6.05036,1645.7,1645.6,40.8]
[1745223489591,6.15326435,1645.7,1645.6,40.8]
[1745223490402,6.05036,1645.7,1645.6,40.8]
[1745223490699,6.1532641,1645.7,1645.6,40.8]
[1745223491201,2.9454641,1645.7,1645.6,40.8]
[1745223491501,6.1532641,1645.7,1645.6,40.8]
[1745223491704,6.05036,1645.7,1645.6,40.8]
[1745223492004,6.15326127,1645.7,1645.6,40.8]
[1745223492403,6.15326127,1645.7,1645.6,42.5417]
[1745223494403,6.15326413,1645.7,1645.6,42.5417]
[1745223497700,6.15325935,1645.7,1645.6,42.5417]
[1745223499511,6.15326165,1645.7,1645.6,42.5417]
[1745223500902,6.15326247,1645.7,1645.6,42.5417]
[1745223501498,6.98556247,1645.7,1645.6,42.5417]
[1745223502598,1.21533,1645.6,1645.5,0.0287]
[1745223502806,2.93183,1645.6,1645.5,0.0287]
[1745223503109,2.93183,1645.6,1645.5,40.8287]
[1745223503806,6.86083,1645.6,1645.5,42.5072]
[1745223504404,3.929,1645.6,1645.5,42.5072]